Cogmind - Beta 14 @@@ ROGUE MODE // 2024.11.14 @ 16:15:36 Player: BEEEEES Result: Destroyed self with Rocket Launcher Performance ------------- Evolutions (1) 500 Regions Visited (3) 600 Robots Destroyed (20) 100 Value Destroyed (356) 356 Prototype IDs (1) 20 Alien Tech Used (0) 0 Bonus (0) 0 TOTAL SCORE: 1576 Bonus ------- None Cogmind --------- Core Integrity 0/400 Matter 213/300 Energy 85/100 System Corruption 0% Temperature Cool (0) Movement Core (1400) Ox27 Location -9/Materials Parts ------- > --- POWER (1) -------- (None) > --- PROPULSION (3) --- (None) > --- UTILITY (3) ------ Huge Storage Unit Improved Signal Interpreter > --- WEAPON (2) ------- Rocket Launcher > --- INVENTORY (25) --- Light Ion Engine Light Treads Light Treads Improved Treads Aluminum Leg Terrain Scanner EM Pulse Gun Datajack Hammer Peak State ------------ > --- POWER ------------ Ion Engine > --- PROPULSION ------- Light Treads Light Treads Improved Treads > --- UTILITY ---------- Huge Storage Unit Improved Signal Interpreter Terrain Scanner > --- WEAPON ----------- Medium Laser Assault Rifle > --- INVENTORY -------- Light Ion Engine Aluminum Leg Aluminum Leg Aluminum Leg Aluminum Leg EM Pulse Gun Light Assault Rifle Grenade Launcher Datajack Hammer [Rating: 13] Favorites ----------- Power Ion Engine Engine Ion Engine Propulsion Aluminum Leg Treads Light Treads Leg Aluminum Leg Utility Improved Signal Interpreter Device Terrain Scanner Storage Huge Storage Unit Processor Improved Signal Interpreter Protection Light Armor Plating Weapon Medium Laser Energy Gun Medium Laser Ballistic Gun Assault Rifle Launcher Grenade Launcher Special Melee Weapon Datajack Build | -11 -10 -10 -9 ------- Run | Yrd Mat Min Mat Slots Evolved 2 | . . . 2 Power . | . . . . Propulsion 1 | . . . 1 Utility 1 | . . . 1 Weapon . | . . . . Parts Attached 26 | 6 4 3 13 Power 3 | 1 . 1 1 Engine 3 | 1 . 1 1 Core . | . . . . Reactor . | . . . . Propulsion 10 | 2 . 1 7 Treads 3 | . . . 3 Leg 7 | 2 . 1 4 Wheel . | . . . . Hover . | . . . . Flight . | . . . . Utility 5 | 1 1 1 2 Device 1 | . . . 1 Storage 2 | 1 . . 1 Processor 1 | . . 1 . Hackware . | . . . . Protection 1 | . 1 . . Artifact . | . . . . Weapon 8 | 2 3 . 3 Energy Gun 3 | 2 1 . . Energy Cannon . | . . . . Ballistic Gun 2 | . 1 . 1 Ballistic Cannon . | . . . . Launcher 2 | . . . 2 Special Weapon . | . . . . Impact Weapon . | . . . . Slashing Weapon . | . . . . Piercing Weapon . | . . . . Special Melee Weapon 1 | . 1 . . Unidentified Prototypes 1 | . . . 1 Parts Lost 9 | . 1 . 8 Power 1 | . . . 1 Propulsion 3 | . . . 3 Utility . | . . . . Weapon 5 | . 1 . 4 Highest Loss Streak 3 | . 1 . 3 To Critical Strikes . | . . . . Average Slot Usage (%) 92 | . 92 98 91 Engine 11 | . 14 14 10 Treads 16 | . . . 22 Leg 13 | . 28 26 9 Device 4 | . . . 5 Storage 11 | . 14 14 11 Processor 8 | . . 5 11 Protection 2 | . 8 8 . Energy Gun 9 | . 10 14 9 Ballistic Gun 11 | . 12 14 10 Launcher 1 | . . . 1 Peak Build Rating 13 | 6 7 9 13 Average Rating 10 | 4 6 7 11 On Entrance 5 | . 6 7 9 Naked Turns . | . . . . Heaviest Build 92 | 14 17 17 92 Greatest Support 63 | 20 20 20 63 Greatest Overweight (x) 9 | 2 . 1 9 Average Overweight (x) . | . . . 1 Largest Inventory Capacity 25 | 8 8 8 25 Average Capacity 18 | 6 8 8 22 Most Carried 13 | 4 8 8 13 Average Carried 7 | 3 6 7 8 Final Capacity 25 | 8 8 8 25 Final Carried 9 | 4 8 7 9 Class Distribution -------------------- 100% | Mutant Dominant Class ---------------- Mutant | -10/Materials Mutant | -10/Mines Mutant | -9/Materials Resources | -11 -10 -10 -9 ----------- Run | Yrd Mat Min Mat Matter Collected 564 | 217 52 79 216 Remotely . | . . . . Salvage Created 487 | . 52 30 405 Parts 31 | . 6 2 23 Haulers Intercepted 2 | . . . 2 Recyclers Shooed 2 | . . . 2 Parts Field Recycled . | . . . . Retrieved Matter . | . . . . Parts Self-Destructed . | . . . . Prevented . | . . . . Kills | -11 -10 -10 -9 ------- Run | Yrd Mat Min Mat Combat Hostiles Destroyed 12 | . 3 2 7 Guns 8 | . 3 2 3 AOE 4 | . . . 4 Classes Destroyed 9 | . 1 . 8 Worker 1 | . . . 1 Builder 2 | . . . 2 Tunneler 1 | . . . 1 Hauler 2 | . . . 2 Recycler 2 | . . . 2 Swarmer 5 | . 3 2 . Grunt 5 | . . . 5 Duelist 1 | . . . 1 Sentry 1 | . . . 1 Best Kill Streak 4 | . 3 2 4 Combat Bots Only 3 | . 3 2 2 Max Kills in Single Turn 4 | . 1 1 4 Gunslinging . | . . . . Exploded 2 | . . . 2 Melee . | . . . . Uniques/NPCs Destroyed . | . . . . Combat | -11 -10 -10 -9 -------- Run | Yrd Mat Min Mat Hostile Shots Fired 108 | . 18 6 84 Missed 27 | . 1 . 26 Damage Taken 1366 | . 134 48 1184 Core 421 | . 17 . 404 Absorbed by Shields . | . . . . Core Remaining (%) 96 | 100 . 93 . Volleys Fired 45 | . 7 4 34 Largest 2 | . 1 2 2 Hottest 80 | . 20 70 80 Shots Fired 67 | . 7 8 52 Gun 51 | . 7 8 36 Cannon . | . . . . Launcher 16 | . . . 16 Special . | . . . . Kinetic 35 | . 7 4 24 Thermal 16 | . . 4 12 Explosive 16 | . . . 16 Electromagnetic . | . . . . Robot Hit Streak 14 | . 2 2 14 Robot Miss Streak 2 | . 1 2 1 Penetration Max . | . . . . Secondary Targets . | . . . . Shots Hit Robots 50 | . 4 3 43 Core Hits 36 | . 3 2 31 Critical Kills . | . . . . Critical Parts Destroyed 1 | . . . 1 Critical Strikes 3 | . . . 3 Burn 2 | . . . 2 Destroy 1 | . . . 1 Melee Attacks . | . . . . Impact . | . . . . Slashing . | . . . . Piercing . | . . . . Sneak Attacks . | . . . . Combat Hostiles . | . . . . Follow-up Attacks . | . . . . Damage Inflicted 1326 | . 50 37 1239 Guns 426 | . 50 37 339 Cannons . | . . . . Explosions 881 | . . . 881 Melee . | . . . . Ramming 19 | . . . 19 Kinetic 262 | . 50 12 200 Thermal 164 | . . 25 139 Explosive 881 | . . . 881 Electromagnetic . | . . . . Impact . | . . . . Slashing . | . . . . Piercing . | . . . . Highest Corruption 5 | . 5 5 . Average Corruption 4 | . 4 5 . Corruption Purged . | . . . . Corruption Blocked . | . . . . Effects 5 | . 4 1 . Message Errors 1 | . 1 . . Heat Flow Errors 2 | . 2 . . Parts Rejected 1 | . . 1 . Data Loss (major) 1 | . 1 . . Overload Shots . | . . . . Overflow Damage 36 | . . . 36 Projectiles . | . . . . Explosions 36 | . . . 36 Melee . | . . . . Knockbacks . | . . . . Impact . | . . . . Kinetic . | . . . . Secondary . | . . . . Self-Inflicted Damage 163 | . . . 163 Shots 9 | . . . 9 Rammed . | . . . . Targets Rammed 1 | . . . 1 Kicked 1 | . . . 1 Crushed . | . . . . Highest Temperature 277 | . 277 36 72 Average Temperature 38 | . 130 19 20 Received Heat Transfer 312 | . . . 312 Siege Activations . | . . . . Robots Corrupted . | . . . . Combat Hostiles . | . . . . Parts Fried . | . . . . Impact Corruptions . | . . . . Robots Melted . | . . . . Combat Hostiles . | . . . . Parts Melted 1 | . . . 1 Heat Transferred 629 | . . 74 555 Parts Sabotaged . | . . . . Parts Stolen . | . . . . Parts Stripped . | . . . . Power Chain Reactions . | . . . . Alert | -11 -10 -10 -9 ------- Run | Yrd Mat Min Mat Peak Influence 169 | . 70 92 169 Initial 35 | . . 27 35 Average 35 | . 34 43 37 Maximum Alert Level . | . . . . Low Security (%) 100 | 100 100 100 100 Level 1 . | . . . . Level 2 . | . . . . Level 3 . | . . . . Level 4 . | . . . . Level 5 . | . . . . High Security . | . . . . Max Security . | . . . . Squads Dispatched 5 | . 1 1 3 Investigation 3 | . 1 1 1 Extermination . | . . . . Reinforcement 2 | . . . 2 Assault . | . . . . Garrison . | . . . . Intercept . | . . . . Searches Triggered . | . . . . Construction Impeded 1 | . . . 1 Haulers Reinforced . | . . . . Active Scanning Responses . | . . . . Cargo Convoy Interrupts . | . . . . Stealth | -11 -10 -10 -9 --------- Run | Yrd Mat Min Mat Distress Signals 2 | . . . 2 Communications Jammed . | . . . . Distress Signals . | . . . . Times Spotted 20 | . 3 2 15 Peak Tracking Total 5 | . 3 3 5 Tactical Retreats 2 | . . 1 1 Traps | -11 -10 -10 -9 ------- Run | Yrd Mat Min Mat Traps Triggered 5 | . 4 . 1 Indirectly . | . . . . Trap Hack Attempts . | . . . . Triggered . | . . . . Disarmed . | . . . . Reprogrammed . | . . . . Reused . | . . . . Traps Extracted . | . . . . Installed . | . . . . Triggered . | . . . . Machines | -11 -10 -10 -9 ---------- Run | Yrd Mat Min Mat Machines Disabled 1 | . . . 1 Max in Single Turn 1 | . . . 1 Machines Repaired . | . . . . Machines Dismantled . | . . . . Machines Sabotaged . | . . . . Overloaded Fab Kills . | . . . . Hacking | -11 -10 -10 -9 --------- Run | Yrd Mat Min Mat Machines Accessed 9 | . 4 1 4 Terminals 7 | . 4 . 3 Fabricators . | . . . . Repair Stations . | . . . . Recycling Units . | . . . . Scanalyzers 1 | . . . 1 Garrison Access . | . . . . Total Hacks 21 | . 11 1 9 Successful 9 | . 1 1 7 Failed 12 | . 10 . 2 Catastrophic 1 | . 1 . . Database Lockouts . | . . . . Manual . | . . . . Terminals 18 | . 11 . 7 Fabricators . | . . . . Repair Stations . | . . . . Recycling Units . | . . . . Scanalyzers 2 | . . . 2 Garrison Access . | . . . . Terminal Hacks 7 | . 1 1 5 Record 1 | . . . 1 Open Door 1 | . . 1 . Branch Access Points 1 | . . . 1 Emergency Access Points 1 | . . . 1 Locate Traps 1 | . . . 1 Hauler Manifests 1 | . 1 . . Zone Layout 1 | . . . 1 Fabricator Hacks . | . . . . Repair Station Hacks . | . . . . Recycling Unit Hacks . | . . . . Scanalyzer 2 | . . . 2 Insert Component 1 | . . . 1 Analyze 1 | . . . 1 Garrison Access Hacks . | . . . . Unauthorized Hacks . | . . . . Terminals . | . . . . Fabricators . | . . . . Repair Stations . | . . . . Recycling Units . | . . . . Scanalyzers . | . . . . Garrison Access . | . . . . Data Cores Recovered . | . . . . Used . | . . . . Hacking Detections 6 | . 4 . 2 Full Trace Events 2 | . 2 . . Feedback Events . | . . . . Feedback Blocked . | . . . . Robot Schematics Acquired . | . . . . Robots Built . | . . . . Authchips . | . . . . Time . | . . . . Total Robot Build Rating . | . . . . Part Schematics Acquired 1 | . . . 1 Parts Built . | . . . . Authchips . | . . . . Time . | . . . . Total Part Build Rating . | . . . . Parts Repaired . | . . . . Time . | . . . . Parts Recycled . | . . . . Recycled Matter . | . . . . Retrieved Matter . | . . . . Retrieved Components . | . . . . Parts Scanalyzed 1 | . . . 1 Part Schematics Acquired 1 | . . . 1 Parts Damaged . | . . . . Bothacking | -11 -10 -10 -9 ------------ Run | Yrd Mat Min Mat Used RIF Installer . | . . . . Robots Hacked . | . . . . Non-combat . | . . . . Combat . | . . . . Robot Hacks Applied . | . . . . Relay Couplers Released . | . . . . Fabnet Peak Effective % . | . . . . Robots Rewired . | . . . . Allies Hacked . | . . . . Hacks Repelled . | . . . . Allies | -11 -10 -10 -9 -------- Run | Yrd Mat Min Mat Total Allies . | . . . . Largest Group . | . . . . Highest-Rated Group . | . . . . Highest-Rated Ally . | . . . . Total Orders . | . . . . Ally Attacks . | . . . . Total Damage . | . . . . Kills . | . . . . Allies Corrupted . | . . . . Allies Melted . | . . . . Intel | -11 -10 -10 -9 ------- Run | Yrd Mat Min Mat Robot Analysis Total . | . . . . Derelict Logs Recovered . | . . . . Drone Launches . | . . . . Drone Recoveries . | . . . . Exploration | -11 -10 -10 -9 ------------- Run | Yrd Mat Min Mat Turns Passed 1686 | 82 250 126 1228 Spaces Moved 793 | 61 188 88 456 Core 7 | 7 . . . Treads 338 | . . . 338 Legs 448 | 54 188 88 118 Wheels . | . . . . Hover . | . . . . Flight . | . . . . Fastest Speed 50 | 50 120 120 120 Average Speed 187 | 113 120 121 237 Slowest Speed 750 | 150 120 190 750 Overloaded Moves . | . . . . Propulsion Burnouts . | . . . . Robots Hopped . | . . . . Cave-ins Triggered 1 | . . . 1 Exploration Rate (%) 18 | 4 26 16 26 Regions Visited 3 Branch Regions 1 Pre-discovered Areas . | . . . . Known Exits Taken 1 | . . 1 . Unknown Exits Taken 2 | 1 1 . . Scrap Searched . | . . . . Spaces Dug . | . . . . Terrain Destroyed 59 | . . . 59 Melee . | . . . . Projectile . | . . . . AOE 59 | . . . 59 Terrain Rammed . | . . . . Walls Destroyed . | . . . . Machines Disabled . | . . . . Actions | -11 -10 -10 -9 --------- Run | Yrd Mat Min Mat Total 930 | 70 207 99 554 Wait 38 | . . 2 36 Move 790 | 60 187 87 456 Hop . | . . . . Pick Up 16 | 4 6 1 5 Fast Attach 12 | 6 1 1 4 Attach 13 | . 3 1 9 Detach 8 | . 2 . 6 Swap 1 | . . 1 . Drop 6 | . 1 2 3 Fire 45 | . 7 4 34 Melee . | . . . . Ram . | . . . . Kick 1 | . . . 1 Crush . | . . . . Escape Stasis . | . . . . Rewire . | . . . . Trap . | . . . . Miscellaneous . | . . . . Route ------- -11/Scrapyard -10/Materials -10/Mines -9/Materials (discovered 2 exits: Min / Sto) History --------- Turn | Location | Event 10 | -11/Scrapyard | Discovered new exit (range 16) 83 | -11/Scrapyard | Entered Materials 312 | -10/Materials | Discovered new exit (range 7) 315 | -10/Materials | Build established: Mutant 333 | -10/Materials | Entered Mines 381 | -10/Mines | Met a Derelict shopkeep closing up shop 406 | -10/Mines | Discovered new exit (range 14) 454 | -10/Mines | Identified exit to Materials 459 | -10/Mines | Entered Materials 459 | -9/Materials | Evolved 2 slots: Propulsion x1, Utility x1 1364 | -9/Materials | Identified exit to Mines 1364 | -9/Materials | Identified exit to Storage 1502 | -9/Materials | Crushed by falling debris 1502 | -9/Materials | Core integrity fell below 50% 1659 | -9/Materials | Core integrity fell below 20% 1687 | -9/Materials | Destroyed self with Rocket Launcher Last Messages --------------- K-01 Serf collects debris. U-05 Engineer lays Concrete. U-05 Engineer builds a Wall. U-05 Engineer lays Concrete. Acquired 43 matter. K-01 Serf collects debris. U-05 Engineer lays Concrete. Hvy. Ion Engine destroyed. U-05 Engineer lays Concrete. Aluminum Leg destroyed. U-05 Engineer lays Concrete. K-01 Serf collects debris. U-05 Engineer lays Concrete. Lgt. Assault Rifle destroyed. K-01 Serf collects debris. U-05 Engineer lays Concrete. U-05 Engineer builds a Wall. G-34 Mercenary destroyed. U-05 Engineer destroyed. G-34 Mercenary destroyed. Map ----- +----------------------------------------------------+ | ?????????????????????????????????????????????????? | | ?????????????????????????????????????????????????? | | ?????????????????????????????????????????????????? | | ?????????????????????????????????????????????????? | | ?????????????????????????????????????????????????? | | ?????????????????????????????????????????????????? | | ?????????????????????????????????????????????????? | | ?????????????????????????????????????????????????? | | ?????????????????????????????????????????????????? | | ?????????????????????????????????????????????????? | | ?????????????????????????????????????????????????? | | ?????????????????????????????????????????????????? | | #????????????????????????????????????????????????? | | #????????????????????????????????????????????????? | | #????????????????????????????????????????????????? | | #????????????????????????????????????????????????? | | #????????????????????????????????????????????????? | | #????????????????????????????????????????????????? | | ???###+??????????????????????????????????????????? | | ??? ?????????#######+###??#??????????????????? | | ??# """ ?###?????# ] ## #?????? #??????????? | | ??# """ + ???### k [# u##### #??????????? | | ??# """ # ####### ! a%|! #??????????? | | ??# # # # * =!Y! #??????????? | | ??# ! # # # == #??????????? | | ??????#### # +% @*#! ########??????????? | | ??????# # # # # #?????????????????? | | ??????# # + # # #?????????????????? | | ####### # # ##+######## #?????????????????? | | # # # ## ##??????? #?????????????????? | | # # #### #???????? #?????????????????? | | # # # ##??# #???????? #?????????????????? | | + T #???# #????????? ?????????????????? | | # ## ##???# #????????? ?????????????????? | | # #?###????# #?????????? ????????????????? | | # ?????????# #?????????? ????????????????? | | ### ###?????????# #????????????#???????????????? | | ### ##??????????? ?????????????????????????????? | | ### #???????????? ?????????????????????????????? | | # #???????????? ?????????????????????????????? | | # #??????????????????????????????????????????? | | # #?? ??????????????????????????????????????? | | # ## ???#????????????????????????????????? | | + ## ????????????????????????????????????? | | # ## ????????????????????????????????????? | | # ## ????????????????????????????????????? | | # #######????????????????????????????????????? | | # #??#?#?????????????????????????????????????? | | ### #??????????????????????????????????????????? | | # #???#??????????????????????????????????????? | +----------------------------------------------------+ Best States ------------- Heat Dissipation 28 Energy Generation 14 Energy Capacity 280 Matter Stores 300 Matter Capacity 300 Sight Range 16 Terrain Scan Range 14 Terrain Scan Density 10 Armor Coverage 150 Evasion (%) 55 Recoil Reduction 3 Item Schematics ----------------- Datajack | -9/Materials | Scanalyzed Robot Schematics ------------------ None Fabricated ------------ Nothing Alien Tech Used ----------------- None Achievements -------------- None Challenges ------------ None Game ------ Seed SchematicGravmagLink Manual? 0 Play Time 00:18:49 Cumulative 6.8 hours Start 2024.11.14 @ 15:58:10 End 2024.11.14 @ 16:15:36 Sessions 1 Manual Loads 0 Difficulty Rogue Special Mode None Game No. 14 Rogue 11 Adventurer 3 Explorer 0 Win Type - Total 0 Types 0/0/0/0/0/0/0/0/0 Lore% 3 Gallery% 11 Achievement% 11 Wizard Run 0 Options --------- Layout 1 ASCII 0 Keyboard 0 Movement Arrows Keybinds 0 Fullscreen 1 Font 24/Terminus Map View 50x35 Zoom Use 0% Tactical HUD 0 Map Filters NONE Filters NONE Steam 1 RUN: 4cea7140-4f76-4283-810e-f8cce3f4015e